[Event "Titled Tuesday Blitz November 14 Early 2023"]
[White "Hua, Lefong"]
[Black "Dmitrenko, Viktor"]
[WhiteFideId "2602253"]
[BlackFideId "14110270"]
[WhiteElo "2682"]
[BlackElo "2357"]
[Result "1/2-1/2"]
[Round "1"]
[TimeControl "180+1"]
[Date "2023.11.14"]
[WhiteClock "0:00:26"]
[BlackClock "0:00:11"]
[Board "146"]

1. d4 {[%clk 0:03:00]}  d5 {[%clk 0:02:59]} 2. c4 {[%clk 0:02:58]}  e6 {[%clk 0:02:59]} 3. Nc3 {[%clk 0:02:58]}  a6 {[%clk 0:02:59]} 4. cxd5 {[%clk 0:02:57]}  exd5 {[%clk 0:03:00]} 5. e3 {[%clk 0:02:57]}  Nf6 {[%clk 0:02:48]} 6. Bd3 {[%clk 0:02:57]}  Be6 {[%clk 0:02:47]} 7. Nge2 {[%clk 0:02:57]}  Bd6 {[%clk 0:02:47]} 8. Ng3 {[%clk 0:02:55]}  g6 {[%clk 0:02:30]} 9. O-O {[%clk 0:02:53]}  Nbd7 {[%clk 0:02:29]} 10. f3 {[%clk 0:02:51]}  c5 {[%clk 0:02:07]} 11. Re1 {[%clk 0:02:49]}  cxd4 {[%clk 0:01:42]} 12. exd4 {[%clk 0:02:49]}  O-O {[%clk 0:01:42]} 13. Bh6 {[%clk 0:02:42]}  Re8 {[%clk 0:01:42]} 14. Qd2 {[%clk 0:02:43]}  Rc8 {[%clk 0:01:39]} 15. Rad1 {[%clk 0:02:41]}  b5 {[%clk 0:01:39]} 16. Bf4 {[%clk 0:02:23]}  Bf8 {[%clk 0:01:20]} 17. Be5 {[%clk 0:02:09]}  Qb6 {[%clk 0:01:03]} 18. Kh1 {[%clk 0:02:01]}  Bg7 {[%clk 0:00:57]} 19. h3 {[%clk 0:01:54]}  h5 {[%clk 0:00:37]} 20. h4 {[%clk 0:01:40]}  Nxe5 {[%clk 0:00:30]} 21. dxe5 {[%clk 0:01:38]}  Nd7 {[%clk 0:00:30]} 22. f4 {[%clk 0:01:32]}  Nc5 {[%clk 0:00:21]} 23. Be2 {[%clk 0:01:20]}  Rcd8 {[%clk 0:00:18]} 24. Qd4 {[%clk 0:01:12]}  Nd7 {[%clk 0:00:15]} 25. Bf3 {[%clk 0:01:06]}  Qxd4 {[%clk 0:00:13]} 26. Rxd4 {[%clk 0:01:07]}  Nb6 {[%clk 0:00:14]} 27. Red1 {[%clk 0:01:06]}  f6 {[%clk 0:00:13]} 28. Nxd5 {[%clk 0:00:53]}  Nxd5 {[%clk 0:00:13]} 29. Bxd5 {[%clk 0:00:54]}  Bxd5 {[%clk 0:00:13]} 30. Rxd5 {[%clk 0:00:55]}  Rxd5 {[%clk 0:00:13]} 31. Rxd5 {[%clk 0:00:55]}  fxe5 {[%clk 0:00:14]} 32. Ne2 {[%clk 0:00:44]}  exf4 {[%clk 0:00:10]} 33. Nxf4 {[%clk 0:00:44]}  Re1+ {[%clk 0:00:07]} 34. Kh2 {[%clk 0:00:44]}  Be5 {[%clk 0:00:07]} 35. g3 {[%clk 0:00:39]}  Bxf4 {[%clk 0:00:07]} 36. gxf4 {[%clk 0:00:39]}  Re2+ {[%clk 0:00:08]} 37. Kg3 {[%clk 0:00:40]}  Rxb2 {[%clk 0:00:08]} 38. a4 {[%clk 0:00:39]}  bxa4 {[%clk 0:00:07]} 39. Ra5 {[%clk 0:00:39]}  Rb3+ {[%clk 0:00:08]} 40. Kg2 {[%clk 0:00:38]}  Rb4 {[%clk 0:00:07]} 41. Kf3 {[%clk 0:00:33]}  Kf7 {[%clk 0:00:06]} 42. Rxa6 {[%clk 0:00:33]}  Rb3+ {[%clk 0:00:07]} 43. Ke4 {[%clk 0:00:31]}  a3 {[%clk 0:00:07]} 44. Ra7+ {[%clk 0:00:30]}  Kf6 {[%clk 0:00:07]} 45. Ra6+ {[%clk 0:00:30]}  Kg7 {[%clk 0:00:06]} 46. Ra7+ {[%clk 0:00:30]}  Kh6 {[%clk 0:00:06]} 47. Ra6 {[%clk 0:00:31]}  Rb4+ {[%clk 0:00:05]} 48. Ke5 {[%clk 0:00:28]}  Rb5+ {[%clk 0:00:03]} 49. Kd4 {[%clk 0:00:27]}  Rf5 {[%clk 0:00:03]} 50. Ke4 {[%clk 0:00:23]}  Rb5 {[%clk 0:00:03]} 51. Rxa3 {[%clk 0:00:23]}  Rb4+ {[%clk 0:00:03]} 52. Kf3 {[%clk 0:00:24]}  Kg7 {[%clk 0:00:03]} 53. Ra7+ {[%clk 0:00:24]}  Kf6 {[%clk 0:00:04]} 54. Ra6+ {[%clk 0:00:25]}  Kf5 {[%clk 0:00:04]} 55. Kg3 {[%clk 0:00:24]}  Rb3+ {[%clk 0:00:04]} 56. Kg2 {[%clk 0:00:24]}  Kxf4 {[%clk 0:00:05]} 57. Rxg6 {[%clk 0:00:24]}  Rb2+ {[%clk 0:00:05]} 58. Kh3 {[%clk 0:00:24]}  Rb3+ {[%clk 0:00:05]} 59. Kh2 {[%clk 0:00:25]}  Rb2+ {[%clk 0:00:06]} 60. Kg1 {[%clk 0:00:26]}  Rb1+ {[%clk 0:00:06]} 61. Kg2 {[%clk 0:00:26]}  Rb2+ {[%clk 0:00:06]} 62. Kf1 {[%clk 0:00:27]}  Rb1+ {[%clk 0:00:07]} 63. Kf2 {[%clk 0:00:27]}  Rb2+ {[%clk 0:00:08]} 64. Ke1 {[%clk 0:00:28]}  Rb1+ {[%clk 0:00:08]} 65. Ke2 {[%clk 0:00:28]}  Rb2+ {[%clk 0:00:09]} 66. Kf1 {[%clk 0:00:28]}  Rh2 {[%clk 0:00:09]} 67. Ra6 {[%clk 0:00:25]}  Rxh4 {[%clk 0:00:09]} 68. Ra3 {[%clk 0:00:25]}  Rg4 {[%clk 0:00:08]} 69. Kf2 {[%clk 0:00:25]}  h4 {[%clk 0:00:08]} 70. Ra4+ {[%clk 0:00:25]}  Kg5 {[%clk 0:00:09]} 71. Rxg4+ {[%clk 0:00:23]}  Kxg4 {[%clk 0:00:10]} 72. Kg2 {[%clk 0:00:23]}  h3+ {[%clk 0:00:10]} 73. Kh1 {[%clk 0:00:24]}  Kg3 {[%clk 0:00:10]} 74. Kg1 {[%clk 0:00:25]}  h2+ {[%clk 0:00:11]} 75. Kh1 {[%clk 0:00:26]}  Kh3 {[%clk 0:00:11]} 1/2-1/2


[Site "https://www.chess.com"]

[Event "Titled Tuesday Blitz November 14 Early 2023"]
[White "Mejia, Cherry Ann"]
[Black "Koellner, Ruben Gideon"]
[WhiteFideId "5206880"]
[BlackFideId "12993093"]
[WhiteElo "2357"]
[BlackElo "2681"]
[Result "1-0"]
[Round "1"]
[TimeControl "180+1"]
[Date "2023.11.14"]
[WhiteClock "0:00:13"]
[BlackClock "0:00:14"]
[Board "147"]

1. e4 {[%clk 0:02:58]}  d6 {[%clk 0:02:59]} 2. Nc3 {[%clk 0:02:57]}  Nf6 {[%clk 0:03:00]} 3. d4 {[%clk 0:02:57]}  e5 {[%clk 0:02:59]} 4. Nf3 {[%clk 0:02:57]}  Nbd7 {[%clk 0:02:59]} 5. Bc4 {[%clk 0:02:54]}  Be7 {[%clk 0:02:59]} 6. h3 {[%clk 0:02:55]}  c6 {[%clk 0:02:59]} 7. Be3 {[%clk 0:02:55]}  b5 {[%clk 0:02:58]} 8. Bd3 {[%clk 0:02:55]}  Qc7 {[%clk 0:02:57]} 9. O-O {[%clk 0:02:46]}  h6 {[%clk 0:02:56]} 10. Nh4 {[%clk 0:02:38]}  g6 {[%clk 0:02:54]} 11. d5 {[%clk 0:02:24]}  cxd5 {[%clk 0:02:43]} 12. Nxb5 {[%clk 0:02:23]}  Qb7 {[%clk 0:02:38]} 13. exd5 {[%clk 0:02:22]}  Nxd5 {[%clk 0:02:36]} 14. Nxg6 {[%clk 0:02:13]}  Nxe3 {[%clk 0:02:23]} 15. fxe3 {[%clk 0:02:03]}  fxg6 {[%clk 0:02:23]} 16. Bxg6+ {[%clk 0:02:03]}  Kd8 {[%clk 0:02:22]} 17. Nxd6 {[%clk 0:02:00]}  Bxd6 {[%clk 0:02:19]} 18. Qxd6 {[%clk 0:02:00]}  Qb6 {[%clk 0:02:20]} 19. Qd3 {[%clk 0:01:53]}  Ba6 {[%clk 0:02:14]} 20. Qe4 {[%clk 0:01:49]}  Kc7 {[%clk 0:02:10]} 21. Rf7 {[%clk 0:01:46]}  Rad8 {[%clk 0:02:09]} 22. Qxe5+ {[%clk 0:01:43]}  Kc8 {[%clk 0:02:07]} 23. Bf5 {[%clk 0:01:36]}  Bb5 {[%clk 0:02:03]} 24. Rd1 {[%clk 0:01:33]}  Rhe8 {[%clk 0:02:01]} 25. Qc3+ {[%clk 0:01:32]}  Qc7 {[%clk 0:01:55]} 26. Qb4 {[%clk 0:01:06]}  Re5 {[%clk 0:01:49]} 27. e4 {[%clk 0:00:55]}  Qc5+ {[%clk 0:01:44]} 28. Qd4 {[%clk 0:00:49]}  Qxd4+ {[%clk 0:01:34]} 29. Rxd4 {[%clk 0:00:48]}  Rc5 {[%clk 0:01:35]} 30. c4 {[%clk 0:00:36]}  Rxc4 {[%clk 0:00:17]} 31. Bxd7+ {[%clk 0:00:35]}  Kb8 {[%clk 0:00:17]} 32. Rxc4 {[%clk 0:00:27]}  Bxc4 {[%clk 0:00:18]} 33. Rh7 {[%clk 0:00:25]}  Bxa2 {[%clk 0:00:18]} 34. e5 {[%clk 0:00:23]}  Bg8 {[%clk 0:00:18]} 35. Rg7 {[%clk 0:00:22]}  Bd5 {[%clk 0:00:13]} 36. e6 {[%clk 0:00:22]}  Bxe6 {[%clk 0:00:12]} 37. Bxe6 {[%clk 0:00:22]}  Rd2 {[%clk 0:00:12]} 38. b3 {[%clk 0:00:20]}  a5 {[%clk 0:00:13]} 39. Rg6 {[%clk 0:00:20]}  Rd6 {[%clk 0:00:10]} 40. Rxh6 {[%clk 0:00:19]}  Kc7 {[%clk 0:00:11]} 41. Rg6 {[%clk 0:00:19]}  Kb6 {[%clk 0:00:11]} 42. h4 {[%clk 0:00:19]}  Kc5 {[%clk 0:00:11]} 43. h5 {[%clk 0:00:19]}  Kd4 {[%clk 0:00:11]} 44. h6 {[%clk 0:00:19]}  Ke5 {[%clk 0:00:11]} 45. Bf7 {[%clk 0:00:19]}  Rd7 {[%clk 0:00:09]} 46. h7 {[%clk 0:00:18]}  Rd1+ {[%clk 0:00:07]} 47. Kf2 {[%clk 0:00:17]}  Rd2+ {[%clk 0:00:07]} 48. Ke3 {[%clk 0:00:17]}  Rd8 {[%clk 0:00:08]} 49. Bg8 {[%clk 0:00:15]}  Kf5 {[%clk 0:00:07]} 50. Rg7 {[%clk 0:00:15]}  Re8+ {[%clk 0:00:05]} 51. Kd4 {[%clk 0:00:15]}  Rd8+ {[%clk 0:00:06]} 52. Kc5 {[%clk 0:00:15]}  Rc8+ {[%clk 0:00:07]} 53. Kb6 {[%clk 0:00:15]}  Rb8+ {[%clk 0:00:08]} 54. Kxa5 {[%clk 0:00:15]}  Rxb3 {[%clk 0:00:09]} 55. Bxb3 {[%clk 0:00:13]}  Kf4 {[%clk 0:00:10]} 56. h8=Q {[%clk 0:00:13]}  Ke3 {[%clk 0:00:11]} 57. Qh3+ {[%clk 0:00:13]}  Kf2 {[%clk 0:00:11]} 58. Qf3+ {[%clk 0:00:12]}  Kg1 {[%clk 0:00:12]} 59. g4 {[%clk 0:00:13]}  Kh2 {[%clk 0:00:13]} 60. Rh7+ {[%clk 0:00:13]}  Kg1 {[%clk 0:00:14]} 61. Rh1# {[%clk 0:00:13]} 1-0


[Site "https://www.chess.com"]

[Event "Titled Tuesday Blitz November 14 Early 2023"]
[White "Prestia, Paris"]
[Black "EvgenyBurmakin"]
[WhiteFideId "30925959"]
[WhiteElo "2680"]
[BlackElo "2352"]
[Result "0-1"]
[Round "1"]
[TimeControl "180+1"]
[Date "2023.11.14"]
[WhiteClock "0:02:25"]
[BlackClock "0:02:09"]
[Board "148"]

1. e4 {[%clk 0:03:00]}  c5 {[%clk 0:02:58]} 2. Nf3 {[%clk 0:03:00]}  d6 {[%clk 0:02:56]} 3. Nc3 {[%clk 0:03:01]}  Nf6 {[%clk 0:02:55]} 4. g3 {[%clk 0:02:54]}  Nc6 {[%clk 0:02:53]} 5. Bg2 {[%clk 0:02:54]}  g6 {[%clk 0:02:53]} 6. d4 {[%clk 0:02:53]}  cxd4 {[%clk 0:02:53]} 7. Nxd4 {[%clk 0:02:53]}  Bg7 {[%clk 0:02:53]} 8. Nde2 {[%clk 0:02:53]}  O-O {[%clk 0:02:52]} 9. O-O {[%clk 0:02:54]}  Bd7 {[%clk 0:02:44]} 10. h3 {[%clk 0:02:53]}  a6 {[%clk 0:02:44]} 11. a4 {[%clk 0:02:53]}  Rc8 {[%clk 0:02:43]} 12. Re1 {[%clk 0:02:51]}  Ne5 {[%clk 0:02:19]} 13. b3 {[%clk 0:02:49]}  b5 {[%clk 0:02:14]} 14. axb5 {[%clk 0:02:45]}  axb5 {[%clk 0:02:15]} 15. f4 {[%clk 0:02:41]}  Qb6+ {[%clk 0:02:14]} 16. Kh2 {[%clk 0:02:40]}  Neg4+ {[%clk 0:02:11]} 17. hxg4 {[%clk 0:02:30]}  Nxg4+ {[%clk 0:02:12]} 18. Kh1 {[%clk 0:02:26]}  Nf2+ {[%clk 0:02:11]} 19. Kh2 {[%clk 0:02:27]}  Nxd1 {[%clk 0:02:11]} 20. Rxd1 {[%clk 0:02:25]}  Bxc3 {[%clk 0:02:09]} 0-1


[Site "https://www.chess.com"]

[Event "Titled Tuesday Blitz November 14 Early 2023"]
[White "Golubev, Mikhail"]
[Black "Degtiarev, Evgeny"]
[WhiteFideId "14100983"]
[BlackFideId "4149610"]
[WhiteElo "2666"]
[BlackElo "2338"]
[Result "1-0"]
[Round "1"]
[TimeControl "180+1"]
[Date "2023.11.14"]
[WhiteClock "0:00:29"]
[BlackClock "0:00:06"]
[Board "154"]

1. e3 {[%clk 0:02:46]}  d5 {[%clk 0:02:58]} 2. Nf3 {[%clk 0:02:45]}  Nf6 {[%clk 0:02:58]} 3. c4 {[%clk 0:02:42]}  c6 {[%clk 0:02:57]} 4. Nc3 {[%clk 0:02:42]}  g6 {[%clk 0:02:55]} 5. d4 {[%clk 0:02:41]}  Bg7 {[%clk 0:02:54]} 6. Bd3 {[%clk 0:02:37]}  O-O {[%clk 0:02:54]} 7. O-O {[%clk 0:02:37]}  Bg4 {[%clk 0:02:52]} 8. h3 {[%clk 0:02:33]}  Bxf3 {[%clk 0:02:50]} 9. Qxf3 {[%clk 0:02:34]}  dxc4 {[%clk 0:02:43]} 10. Bxc4 {[%clk 0:02:34]}  Nbd7 {[%clk 0:02:43]} 11. Rd1 {[%clk 0:02:30]}  b5 {[%clk 0:02:35]} 12. Bb3 {[%clk 0:02:24]}  Qb6 {[%clk 0:02:27]} 13. Bd2 {[%clk 0:02:19]}  a5 {[%clk 0:02:22]} 14. a4 {[%clk 0:02:18]}  b4 {[%clk 0:02:20]} 15. Ne4 {[%clk 0:02:15]}  Nxe4 {[%clk 0:02:09]} 16. Qxe4 {[%clk 0:02:16]}  e5 {[%clk 0:02:09]} 17. Rac1 {[%clk 0:02:04]}  Rac8 {[%clk 0:01:53]} 18. Rc4 {[%clk 0:01:42]}  exd4 {[%clk 0:01:44]} 19. exd4 {[%clk 0:01:41]}  c5 {[%clk 0:01:44]} 20. Rdc1 {[%clk 0:01:35]}  Qa7 {[%clk 0:00:24]} 21. dxc5 {[%clk 0:01:26]}  Bxb2 {[%clk 0:00:22]} 22. R1c2 {[%clk 0:01:24]}  Rfe8 {[%clk 0:00:21]} 23. Qf4 {[%clk 0:00:42]}  Be5 {[%clk 0:00:20]} 24. Qf3 {[%clk 0:00:38]}  Rxc5 {[%clk 0:00:18]} 25. Rxc5 {[%clk 0:00:34]}  Nxc5 {[%clk 0:00:19]} 26. Rxc5 {[%clk 0:00:34]}  Bd6 {[%clk 0:00:06]} 27. Rd5 {[%clk 0:00:29]} 1-0


[Site "https://www.chess.com"]

[Event "Titled Tuesday Blitz November 14 Early 2023"]
[White "Kornyukov, Alexey"]
[Black "Skliarov, Viktor"]
[WhiteFideId "4150457"]
[BlackFideId "14106736"]
[WhiteElo "2337"]
[BlackElo "2666"]
[Result "0-1"]
[Round "1"]
[TimeControl "180+1"]
[Date "2023.11.14"]
[WhiteClock "0:00:54"]
[BlackClock "0:02:03"]
[Board "155"]

1. e4 {[%clk 0:02:47]}  c5 {[%clk 0:02:59]} 2. c3 {[%clk 0:02:46]}  d6 {[%clk 0:02:59]} 3. d4 {[%clk 0:02:42]}  Nf6 {[%clk 0:02:59]} 4. f3 {[%clk 0:02:36]}  Qc7 {[%clk 0:02:54]} 5. Be3 {[%clk 0:02:34]}  g6 {[%clk 0:02:54]} 6. Nd2 {[%clk 0:02:30]}  Bg7 {[%clk 0:02:54]} 7. Bb5+ {[%clk 0:02:28]}  Bd7 {[%clk 0:02:53]} 8. Bxd7+ {[%clk 0:02:28]}  Nbxd7 {[%clk 0:02:54]} 9. Ne2 {[%clk 0:02:27]}  O-O {[%clk 0:02:51]} 10. O-O {[%clk 0:02:25]}  b5 {[%clk 0:02:51]} 11. Rc1 {[%clk 0:02:19]}  c4 {[%clk 0:02:39]} 12. b3 {[%clk 0:02:16]}  Nb6 {[%clk 0:02:28]} 13. d5 {[%clk 0:02:09]}  Nfd7 {[%clk 0:02:20]} 14. b4 {[%clk 0:02:02]}  Ne5 {[%clk 0:02:18]} 15. Bd4 {[%clk 0:01:57]}  Nd3 {[%clk 0:02:17]} 16. Rc2 {[%clk 0:01:57]}  a5 {[%clk 0:02:14]} 17. Bxg7 {[%clk 0:01:45]}  Kxg7 {[%clk 0:02:14]} 18. Nd4 {[%clk 0:01:46]}  axb4 {[%clk 0:02:09]} 19. Nxb5 {[%clk 0:01:42]}  Qc5+ {[%clk 0:02:07]} 20. Nd4 {[%clk 0:01:30]}  bxc3 {[%clk 0:02:06]} 21. Nb3 {[%clk 0:01:01]}  cxb3 {[%clk 0:02:03]} 22. axb3 {[%clk 0:00:54]}  Qxd4+ {[%clk 0:02:03]} 0-1


[Site "https://www.chess.com"]

[Event "Titled Tuesday Blitz November 14 Early 2023"]
[White "Papasimakopoulos, Alexandros"]
[Black "MIss_MIaMI"]
[WhiteFideId "4244125"]
[WhiteElo "2664"]
[BlackElo "2334"]
[Result "1-0"]
[Round "1"]
[TimeControl "180+1"]
[Date "2023.11.14"]
[WhiteClock "0:02:21"]
[BlackClock "0:00:06"]
[Board "156"]

1. d4 {[%clk 0:02:59]}  c5 {[%clk 0:02:58]} 2. d5 {[%clk 0:02:59]}  g6 {[%clk 0:02:58]} 3. c4 {[%clk 0:03:00]}  Bg7 {[%clk 0:02:58]} 4. e4 {[%clk 0:03:00]}  a6 {[%clk 0:02:57]} 5. Bd3 {[%clk 0:03:01]}  d6 {[%clk 0:02:58]} 6. h3 {[%clk 0:03:00]}  Nf6 {[%clk 0:02:58]} 7. Nf3 {[%clk 0:03:00]}  O-O {[%clk 0:02:57]} 8. a4 {[%clk 0:03:00]}  b6 {[%clk 0:02:57]} 9. O-O {[%clk 0:03:00]}  Nbd7 {[%clk 0:02:56]} 10. Nc3 {[%clk 0:03:01]}  Ne8 {[%clk 0:02:57]} 11. Re1 {[%clk 0:03:01]}  Nc7 {[%clk 0:02:57]} 12. Bf4 {[%clk 0:03:01]}  Ne5 {[%clk 0:02:53]} 13. Nxe5 {[%clk 0:03:01]}  dxe5 {[%clk 0:02:52]} 14. Be3 {[%clk 0:03:01]}  a5 {[%clk 0:02:43]} 15. f4 {[%clk 0:03:00]}  Ne8 {[%clk 0:02:39]} 16. Rf1 {[%clk 0:02:58]}  Nd6 {[%clk 0:02:12]} 17. Kh1 {[%clk 0:02:56]}  Ba6 {[%clk 0:02:06]} 18. b3 {[%clk 0:02:55]}  Qd7 {[%clk 0:01:57]} 19. fxe5 {[%clk 0:02:53]}  Bxe5 {[%clk 0:01:55]} 20. Qd2 {[%clk 0:02:54]}  Rae8 {[%clk 0:01:44]} 21. Bh6 {[%clk 0:02:53]}  Bg7 {[%clk 0:01:44]} 22. Bxg7 {[%clk 0:02:53]}  Kxg7 {[%clk 0:01:45]} 23. e5 {[%clk 0:02:54]}  Nb7 {[%clk 0:01:36]} 24. Rae1 {[%clk 0:02:52]}  Nd8 {[%clk 0:01:31]} 25. Qg5 {[%clk 0:02:51]}  f6 {[%clk 0:01:22]} 26. e6 {[%clk 0:02:50]}  Qc7 {[%clk 0:01:14]} 27. Qe3 {[%clk 0:02:46]}  Nb7 {[%clk 0:01:12]} 28. Ne4 {[%clk 0:02:45]}  Nd6 {[%clk 0:01:11]} 29. Ng3 {[%clk 0:02:42]}  f5 {[%clk 0:01:01]} 30. Qe5+ {[%clk 0:02:40]}  Rf6 {[%clk 0:01:00]} 31. Bxf5 {[%clk 0:02:37]}  Rf8 {[%clk 0:00:41]} 32. Bd3 {[%clk 0:02:35]}  Qd8 {[%clk 0:00:32]} 33. Ne4 {[%clk 0:02:28]}  Nxe4 {[%clk 0:00:32]} 34. Bxe4 {[%clk 0:02:29]}  Kg8 {[%clk 0:00:29]} 35. Rxf6 {[%clk 0:02:29]}  Rxf6 {[%clk 0:00:30]} 36. d6 {[%clk 0:02:21]}  exd6 {[%clk 0:00:06]} 37. e7 {[%clk 0:02:21]} 1-0


[Site "https://www.chess.com"]

[Event "Titled Tuesday Blitz November 14 Early 2023"]
[White "komogro"]
[Black "Borgaonkar Akshay"]
[BlackFideId "25639110"]
[WhiteElo "2334"]
[BlackElo "2662"]
[Result "0-1"]
[Round "1"]
[TimeControl "180+1"]
[Date "2023.11.14"]
[WhiteClock "0:00:33"]
[BlackClock "0:00:31"]
[Board "157"]

1. Nf3 {[%clk 0:02:54]}  g6 {[%clk 0:02:56]} 2. d4 {[%clk 0:02:49]}  Bg7 {[%clk 0:02:56]} 3. c4 {[%clk 0:02:50]}  Nf6 {[%clk 0:02:35]} 4. Nc3 {[%clk 0:02:49]}  O-O {[%clk 0:02:35]} 5. e4 {[%clk 0:02:49]}  d6 {[%clk 0:02:35]} 6. Be2 {[%clk 0:02:49]}  e5 {[%clk 0:02:35]} 7. O-O {[%clk 0:02:49]}  Nc6 {[%clk 0:02:35]} 8. d5 {[%clk 0:02:50]}  Ne7 {[%clk 0:02:36]} 9. b4 {[%clk 0:02:50]}  Ne8 {[%clk 0:02:32]} 10. c5 {[%clk 0:02:50]}  f5 {[%clk 0:02:31]} 11. Ba3 {[%clk 0:02:50]}  Nf6 {[%clk 0:02:24]} 12. Ng5 {[%clk 0:02:50]}  fxe4 {[%clk 0:02:20]} 13. Ncxe4 {[%clk 0:02:45]}  Nxe4 {[%clk 0:02:17]} 14. Nxe4 {[%clk 0:02:46]}  Nf5 {[%clk 0:02:17]} 15. cxd6 {[%clk 0:02:43]}  cxd6 {[%clk 0:02:16]} 16. b5 {[%clk 0:02:43]}  Qh4 {[%clk 0:01:49]} 17. Nxd6 {[%clk 0:02:30]}  Nxd6 {[%clk 0:01:48]} 18. Bxd6 {[%clk 0:02:30]}  Re8 {[%clk 0:01:45]} 19. Rc1 {[%clk 0:02:12]}  Bf5 {[%clk 0:01:38]} 20. Rc7 {[%clk 0:02:04]}  Rad8 {[%clk 0:01:38]} 21. Ba3 {[%clk 0:02:03]}  e4 {[%clk 0:01:31]} 22. Bc5 {[%clk 0:01:51]}  Be5 {[%clk 0:01:29]} 23. g3 {[%clk 0:01:48]}  Qh3 {[%clk 0:01:21]} 24. Rxb7 {[%clk 0:01:47]}  h5 {[%clk 0:00:58]} 25. Re1 {[%clk 0:01:40]}  e3 {[%clk 0:00:38]} 26. Bxe3 {[%clk 0:01:35]}  Be4 {[%clk 0:00:39]} 27. Bf1 {[%clk 0:01:33]}  Qf5 {[%clk 0:00:36]} 28. Qb3 {[%clk 0:01:20]}  Qf3 {[%clk 0:00:31]} 29. d6+ {[%clk 0:00:33]}  Kh8 {[%clk 0:00:31]} 0-1


[Site "https://www.chess.com"]

[Event "Titled Tuesday Blitz November 14 Early 2023"]
[White "Fernandez Siles, Luis"]
[Black "Kleiman, Jake"]
[WhiteFideId "2209420"]
[BlackFideId "2020041"]
[WhiteElo "2333"]
[BlackElo "2660"]
[Result "1-0"]
[Round "1"]
[TimeControl "180+1"]
[Date "2023.11.14"]
[WhiteClock "0:00:07"]
[BlackClock "0:00:11"]
[Board "159"]

1. e4 {[%clk 0:03:00]}  e5 {[%clk 0:02:55]} 2. Nf3 {[%clk 0:02:59]}  Nc6 {[%clk 0:02:55]} 3. Nc3 {[%clk 0:02:59]}  Nf6 {[%clk 0:02:55]} 4. Bc4 {[%clk 0:02:55]}  Bb4 {[%clk 0:02:53]} 5. O-O {[%clk 0:02:53]}  O-O {[%clk 0:02:52]} 6. Nd5 {[%clk 0:02:46]}  Bd6 {[%clk 0:02:49]} 7. d3 {[%clk 0:02:43]}  Nxd5 {[%clk 0:02:49]} 8. Bxd5 {[%clk 0:02:31]}  Ne7 {[%clk 0:02:49]} 9. Bb3 {[%clk 0:02:29]}  Ng6 {[%clk 0:02:49]} 10. d4 {[%clk 0:02:06]}  exd4 {[%clk 0:02:24]} 11. Qxd4 {[%clk 0:02:05]}  Nf4 {[%clk 0:01:59]} 12. Re1 {[%clk 0:01:57]}  Ne6 {[%clk 0:01:51]} 13. Qd5 {[%clk 0:01:45]}  Be7 {[%clk 0:01:48]} 14. Bd2 {[%clk 0:01:26]}  d6 {[%clk 0:01:46]} 15. Bc3 {[%clk 0:01:24]}  Nc5 {[%clk 0:01:41]} 16. Bc4 {[%clk 0:01:22]}  Be6 {[%clk 0:01:38]} 17. Qd4 {[%clk 0:01:01]}  Bf6 {[%clk 0:01:39]} 18. e5 {[%clk 0:01:02]}  Bxc4 {[%clk 0:01:05]} 19. exf6 {[%clk 0:00:59]}  Be6 {[%clk 0:01:03]} 20. fxg7 {[%clk 0:00:57]}  Re8 {[%clk 0:01:02]} 21. Qf4 {[%clk 0:00:49]}  Nd7 {[%clk 0:00:41]} 22. Ng5 {[%clk 0:00:34]}  Ne5 {[%clk 0:00:30]} 23. Qh4 {[%clk 0:00:20]}  Bf5 {[%clk 0:00:25]} 24. f4 {[%clk 0:00:14]}  Ng4 {[%clk 0:00:19]} 25. h3 {[%clk 0:00:11]}  Ne3 {[%clk 0:00:19]} 26. g4 {[%clk 0:00:09]}  Bg6 {[%clk 0:00:14]} 27. f5 {[%clk 0:00:09]}  Nxf5 {[%clk 0:00:13]} 28. gxf5 {[%clk 0:00:09]}  Bxf5 {[%clk 0:00:14]} 29. Qh6 {[%clk 0:00:09]}  Bg6 {[%clk 0:00:13]} 30. Rf1 {[%clk 0:00:08]}  Qd7 {[%clk 0:00:14]} 31. Rxf7 {[%clk 0:00:06]}  Qc6 {[%clk 0:00:10]} 32. Rf8+ {[%clk 0:00:06]}  Rxf8 {[%clk 0:00:10]} 33. gxf8=Q+ {[%clk 0:00:07]}  Rxf8 {[%clk 0:00:11]} 34. Qg7# {[%clk 0:00:07]} 1-0


[Site "https://www.chess.com"]

[Event "Titled Tuesday Blitz November 14 Early 2023"]
[White "Dowgird, Filip"]
[Black "Lopez Del Alamo, Antonio"]
[WhiteFideId "1121235"]
[BlackFideId "2227339"]
[WhiteElo "2659"]
[BlackElo "2333"]
[Result "1-0"]
[Round "1"]
[TimeControl "180+1"]
[Date "2023.11.14"]
[WhiteClock "0:00:52"]
[BlackClock "0:00:00"]
[Board "160"]

1. d4 {[%clk 0:03:00]}  Nf6 {[%clk 0:02:57]} 2. Bg5 {[%clk 0:03:00]}  Ne4 {[%clk 0:02:56]} 3. Bf4 {[%clk 0:03:00]}  c5 {[%clk 0:02:55]} 4. f3 {[%clk 0:02:55]}  Qa5+ {[%clk 0:02:56]} 5. c3 {[%clk 0:02:55]}  Nf6 {[%clk 0:02:56]} 6. d5 {[%clk 0:02:52]}  d6 {[%clk 0:02:46]} 7. e4 {[%clk 0:02:51]}  g6 {[%clk 0:02:44]} 8. a4 {[%clk 0:02:48]}  Bg7 {[%clk 0:02:42]} 9. Na3 {[%clk 0:02:48]}  O-O {[%clk 0:02:36]} 10. Bd3 {[%clk 0:02:45]}  Na6 {[%clk 0:02:13]} 11. Ne2 {[%clk 0:02:42]}  Bd7 {[%clk 0:02:04]} 12. Nc4 {[%clk 0:02:38]}  Qd8 {[%clk 0:02:01]} 13. O-O {[%clk 0:02:37]}  Nc7 {[%clk 0:01:58]} 14. Ng3 {[%clk 0:02:35]}  Rb8 {[%clk 0:01:56]} 15. Re1 {[%clk 0:02:34]}  a6 {[%clk 0:01:49]} 16. Nb6 {[%clk 0:02:26]}  Na8 {[%clk 0:01:42]} 17. Nxa8 {[%clk 0:02:25]}  Rxa8 {[%clk 0:01:42]} 18. a5 {[%clk 0:02:26]}  b5 {[%clk 0:01:39]} 19. axb6 {[%clk 0:02:26]}  Qxb6 {[%clk 0:01:40]} 20. Bc1 {[%clk 0:02:27]}  c4+ {[%clk 0:01:33]} 21. Be3 {[%clk 0:02:27]}  Qxb2 {[%clk 0:01:31]} 22. Bxc4 {[%clk 0:02:27]}  a5 {[%clk 0:01:15]} 23. Qd3 {[%clk 0:02:13]}  Ne8 {[%clk 0:00:45]} 24. Ne2 {[%clk 0:02:07]}  Qb7 {[%clk 0:00:36]} 25. Reb1 {[%clk 0:02:05]}  Qc7 {[%clk 0:00:33]} 26. Bb6 {[%clk 0:02:03]}  Qc8 {[%clk 0:00:33]} 27. Kh1 {[%clk 0:01:49]}  Nf6 {[%clk 0:00:31]} 28. Rxa5 {[%clk 0:01:44]}  Rxa5 {[%clk 0:00:30]} 29. Bxa5 {[%clk 0:01:44]}  Qc5 {[%clk 0:00:27]} 30. Bb4 {[%clk 0:01:43]}  Qc7 {[%clk 0:00:27]} 31. Ra1 {[%clk 0:01:39]}  Rb8 {[%clk 0:00:23]} 32. Nd4 {[%clk 0:01:35]}  Nh5 {[%clk 0:00:19]} 33. g3 {[%clk 0:01:26]}  Nf6 {[%clk 0:00:16]} 34. Kg2 {[%clk 0:01:26]}  h5 {[%clk 0:00:16]} 35. Bb5 {[%clk 0:01:18]}  h4 {[%clk 0:00:15]} 36. Bxd7 {[%clk 0:01:14]}  Qxd7 {[%clk 0:00:16]} 37. Nc6 {[%clk 0:01:14]}  Rb7 {[%clk 0:00:16]} 38. Ra8+ {[%clk 0:01:10]}  Kh7 {[%clk 0:00:16]} 39. Rd8 {[%clk 0:01:08]}  Qc7 {[%clk 0:00:16]} 40. Qa6 {[%clk 0:00:58]}  Rb6 {[%clk 0:00:14]} 41. Qc8 {[%clk 0:00:58]}  Qxc8 {[%clk 0:00:11]} 42. Rxc8 {[%clk 0:00:58]}  hxg3 {[%clk 0:00:10]} 43. hxg3 {[%clk 0:00:58]}  e6 {[%clk 0:00:08]} 44. dxe6 {[%clk 0:00:57]}  fxe6 {[%clk 0:00:08]} 45. Bxd6 {[%clk 0:00:57]}  Rb2+ {[%clk 0:00:07]} 46. Kh3 {[%clk 0:00:57]}  Rc2 {[%clk 0:00:07]} 47. Nd4 {[%clk 0:00:53]}  Rc1 {[%clk 0:00:00]} 48. Nxe6 {[%clk 0:00:52]} 1-0


[Site "https://www.chess.com"]